fUSD/lending_fUSD_20240423
["ID","MTS","AMOUNT","RATE_DAILY","PERIOD"]
[323304220,1713882681411,-500.0,0.00012288,2]
[323304221,1713882681438,-1018.31994187,0.00012288,2]
[323304222,1713882681465,-500.0,0.00012288,2]
[323304223,1713882681498,-500.0,0.00012288,2]
[323304224,1713882681526,-195.58,0.00012288,2]
[323304225,1713882681553,-750.98,0.00012288,2]
[323304226,1713882681581,-500.0,0.00012288,2]
[323304227,1713882681609,-500.0,0.00012288,2]
[323304228,1713882681639,-500.0,0.00012288,2]
[323304229,1713882681666,-500.0,0.00012288,2]
[323304230,1713882681694,-500.0,0.00012288,2]
[323304231,1713882681725,-605.2,0.00012288,2]
[323304232,1713882681752,-500.0,0.00012288,2]
[323304233,1713882681780,-525.44,0.00012288,2]
[323304234,1713882681807,-833.45,0.00012288,2]
[323304235,1713882681835,-500.0,0.00012288,2]
[323304236,1713882681863,-538.61,0.00012288,2]
[323304237,1713882681893,-541.95,0.00012288,2]
[323304238,1713882681923,-500.0,0.00012288,2]
[323304239,1713882681952,-500.0,0.00012288,2]
[323304240,1713882681980,-500.0,0.00012288,2]
[323304241,1713882682014,-500.0,0.00012288,2]
[323304242,1713882682042,-500.0,0.00012288,2]
[323304243,1713882682070,-1467.98,0.00012288,2]
[323304244,1713882682099,-1398.42,0.00012288,2]
[323304245,1713882682126,-500.0,0.00012288,2]
[323304246,1713882682154,-1598.51,0.00012288,2]
[323304247,1713882682181,-591.59,0.00012288,2]
[323304248,1713882682208,-500.0,0.00012288,2]
[323304249,1713882682237,-500.0,0.00012288,2]
[323304250,1713882682265,-695.66,0.00012288,2]
[323304251,1713882682292,-501.08,0.00012289,2]
[323304252,1713882682318,-500.0,0.00012289,2]
[323304253,1713882682345,-500.0,0.00012289,2]
[323304254,1713882682373,-500.0,0.00012289,2]
[323304255,1713882682403,-500.0,0.00012289,2]
[323304256,1713882682431,-500.0,0.00012289,2]
[323304257,1713882682457,-500.0,0.00012289,2]
[323304258,1713882682488,-500.0,0.00012289,2]
[323304259,1713882682515,-500.0,0.00012289,2]
[323304260,1713882682542,-500.0,0.00012289,2]
[323304261,1713882682569,-500.0,0.00012289,2]
[323304262,1713882682596,-500.0,0.00012289,2]
[323304263,1713882682623,-500.0,0.00012289,2]
[323304264,1713882682650,-500.0,0.00012289,2]
[323304265,1713882682677,-500.0,0.00012289,2]
[323304266,1713882682704,-500.0,0.00012289,2]
[323304267,1713882682734,-500.0,0.00012289,2]
[323304268,1713882682761,-226.04,0.00012289,2]
[323304269,1713882682788,-500.0,0.00012289,2]
[323304270,1713882682815,-500.0,0.00012289,2]
[323304271,1713882682846,-500.0,0.00012289,2]
[323304272,1713882682875,-455.78271799,0.000123,2]
[323304273,1713882682903,-866.57342824,0.00012317,2]
[323304274,1713882682930,-1300.07738684,0.00012345,2]
[323304275,1713882682960,-866.57342824,0.00012381,2]
[323304276,1713882682995,-185.58110848,0.00012407,2]
[323304277,1713882683023,-3076.35403992,0.0001244,2]
[323304278,1713882683051,-866.57342824,0.00012446,2]
[323304279,1713882683079,-364.23,0.00012451,2]
[323304280,1713882683107,-251.6194917,0.000125,2]
[323304281,1713882683135,-866.57342824,0.00012511,2]
[323304282,1713882683162,-500.0,0.00012561,2]
[323304283,1713882683190,-500.0,0.00012561,2]
[323304284,1713882683218,-500.0,0.00012561,2]
[323304285,1713882683250,-175.81,0.00012561,2]
[323304286,1713882683277,-472.11,0.00012561,2]
[323304287,1713882683306,-500.0,0.00012561,2]
[323304288,1713882683334,-336.28,0.00012561,2]
[323304289,1713882683363,-500.0,0.00012561,2]
[323304290,1713882683390,-500.0,0.00012561,2]
[323304291,1713882683415,-288.94,0.00012561,2]
[323304292,1713882683441,-620.15,0.00012561,2]
[323304293,1713882683468,-500.0,0.00012561,2]
[323304294,1713882683501,-585.55,0.00012561,2]
[323304295,1713882683529,-426.26,0.00012561,2]
[323304296,1713882683556,-352.42934632,0.00012561,2]
[323304297,1713882683583,-500.0,0.00012561,2]
[323304298,1713882683610,-500.0,0.00012561,2]
[323304299,1713882683637,-264.57,0.00012561,2]
[323304300,1713882683663,-380.61,0.00012561,2]
[323304301,1713882683692,-507.37,0.00012561,2]
[323304302,1713882683719,-631.24,0.00012561,2]
[323304303,1713882683750,-244.74786915,0.00012561,2]
[323304304,1713882683777,-462.026889,0.00012561,2]
[323304305,1713882683804,-386.49790602,0.00012561,2]
[323304306,1713882683830,-253.58059649,0.00012561,2]
[323304307,1713882683858,-500.0,0.00012561,2]
[323304308,1713882684149,-500.0,0.00012561,2]
[323304309,1713882684180,-500.0,0.00012561,2]
[323304310,1713882684209,-500.0,0.00012561,2]
[323304311,1713882684240,-443.27882592,0.00012561,2]
[323304312,1713882684267,-500.0,0.00012561,2]
[323304313,1713882684297,-500.0,0.00012561,2]
[323304314,1713882684324,-500.0,0.00012561,2]
[323304315,1713882684351,-500.0,0.00012561,2]
[323304316,1713882684378,-500.0,0.00012561,2]
[323304317,1713882684405,-500.0,0.00012561,2]
[323304318,1713882684433,-500.0,0.00012561,2]
[323304319,1713882684459,-500.0,0.00012561,2]
[323304320,1713882684488,-677.44,0.00012561,2]
[323304321,1713882684515,-500.0,0.00012561,2]
[323304322,1713882684542,-300.83,0.00012561,2]
[323304323,1713882684570,-500.0,0.00012561,2]
[323304324,1713882684596,-567.1,0.00012561,2]
[323304325,1713882684623,-500.0,0.00012561,2]
[323304326,1713882684651,-500.0,0.00012561,2]
[323304327,1713882684679,-500.0,0.00012561,2]
[323304328,1713882684707,-618.33873121,0.00012561,2]
[323304329,1713882684734,-500.0,0.00012561,2]
[323304330,1713882684761,-500.0,0.00012561,2]
[323304331,1713882684789,-546.84,0.00012561,2]
[323304332,1713882684816,-500.0,0.00012561,2]
[323304333,1713882684842,-500.0,0.00012561,2]
[323304334,1713882684869,-500.0,0.00012561,2]
[323304335,1713882684896,-500.0,0.00012561,2]
[323304336,1713882684923,-156.34497371,0.00012561,2]
[323304337,1713882684950,-500.0,0.00012561,2]
[323304338,1713882684979,-500.0,0.00012561,2]
[323304339,1713882685008,-500.0,0.00012561,2]
[323304340,1713882685036,-500.0,0.00012561,2]
[323304341,1713882685063,-500.0,0.00012561,2]
[323304342,1713882685090,-500.0,0.00012561,2]
[323304343,1713882685117,-500.0,0.00012561,2]
[323304344,1713882685145,-500.0,0.00012561,2]
[323304345,1713882685173,-500.0,0.00012561,2]
[323304346,1713882685200,-500.0,0.00012561,2]
[323304347,1713882685230,-746.95,0.00012561,2]
[323304348,1713882685256,-500.0,0.00012561,2]
[323304349,1713882685284,-500.0,0.00012561,2]
[323304350,1713882685313,-500.0,0.00012561,2]
[323304351,1713882685342,-500.0,0.00012561,2]
[323304352,1713882685369,-500.0,0.00012561,2]
[323304353,1713882685398,-514.12,0.00012561,2]
[323304354,1713882685425,-500.0,0.00012561,2]
[323304355,1713882685453,-500.0,0.00012561,2]
[323304356,1713882685483,-500.0,0.00012561,2]
[323304357,1713882685511,-1839.78,0.00012561,2]
[323304358,1713882685540,-500.0,0.00012561,2]
[323304359,1713882685569,-517.56,0.00012561,2]
[323304360,1713882685597,-500.0,0.00012561,2]
[323304361,1713882685624,-500.0,0.00012561,2]
[323304362,1713882685653,-551.28579862,0.00012561,2]
[323304363,1713882685682,-500.0,0.00012561,2]
[323304364,1713882685710,-16145.24,0.00012561,2]
[323304365,1713882685741,-500.0,0.00012561,2]
[323304366,1713882685770,-1405.63,0.00012561,2]
[323304367,1713882685798,-500.0,0.00012561,2]
[323304368,1713882685825,-658.46,0.00012561,2]
[323304369,1713882685854,-500.0,0.00012561,2]
[323304370,1713882685882,-837.3,0.00012561,2]
[323304371,1713882685909,-569.58,0.00012561,2]
[323304372,1713882685937,-500.0,0.00012561,2]
[323304373,1713882685965,-500.0,0.00012561,2]
[323304374,1713882685999,-500.0,0.00012561,2]
[323304375,1713882686029,-528.65,0.00012561,2]
[323304376,1713882686058,-947.88,0.00012561,2]
[323304377,1713882686086,-761.26,0.00012561,2]
[323304378,1713882686114,-598.72,0.00012561,2]
[323304379,1713882686142,-514.76,0.00012561,2]
[323304380,1713882686221,-857.59,0.00012561,2]
[323304381,1713882686251,-500.0,0.00012561,2]
[323304382,1713882686279,-500.0,0.00012561,2]
[323304383,1713882686306,-819.03,0.00012561,2]
[323304384,1713882686332,-1925.64,0.00012561,2]
[323304385,1713882686359,-967.05,0.00012561,2]
[323304386,1713882686385,-500.0,0.00012561,2]
[323304387,1713882686413,-500.0,0.00012561,2]
[323304388,1713882686441,-500.0,0.00012561,2]
[323304389,1713882686471,-607.08,0.00012561,2]
[323304390,1713882686508,-500.0,0.00012561,2]
[323304391,1713882686539,-500.0,0.00012561,2]
[323304392,1713882686569,-797.05,0.00012561,2]
[323304393,1713882686595,-722.02,0.00012561,2]
[323304394,1713882686622,-2579.48,0.00012561,2]
[323304395,1713882686649,-500.06,0.00012561,2]
[323304396,1713882686676,-766.59,0.00012561,2]
[323304397,1713882686703,-633.25,0.00012561,2]
[323304398,1713882686734,-2576.38,0.00012561,2]
[323304399,1713882686761,-500.0,0.00012561,2]
[323304400,1713882686789,-1999.88,0.00012561,2]
[323304401,1713882686816,-500.0,0.00012561,2]
[323304402,1713882686843,-500.0,0.00012561,2]
[323304403,1713882686869,-500.0,0.00012561,2]
[323304404,1713882686897,-541.03,0.00012561,2]
[323304405,1713882686923,-500.0,0.00012561,2]
[323304406,1713882686951,-574.38,0.00012561,2]
[323304407,1713882686982,-607.89,0.00012561,2]
[323304408,1713882687010,-500.0,0.00012561,2]
[323304409,1713882687039,-500.0,0.00012561,2]
[323304410,1713882687066,-6823.27,0.00012561,2]
[323304411,1713882687095,-627.17,0.00012561,2]
[323304412,1713882687122,-702.15,0.00012561,2]
[323304413,1713882687149,-500.0,0.00012561,2]
[323304414,1713882687178,-1646.51,0.00012561,2]
[323304415,1713882687206,-3005.44,0.00012561,2]
[323304416,1713882687232,-504.33,0.00012561,2]
[323304417,1713882687260,-500.0,0.00012561,2]
[323304418,1713882687288,-577.28,0.00012561,2]
[323304419,1713882687315,-4165.32,0.00012561,2]
[323304420,1713882687342,-500.0,0.00012561,2]
[323304421,1713882687369,-1048.74,0.00012561,2]
[323304422,1713882687396,-500.0,0.00012561,2]
[323304423,1713882687424,-609.75,0.00012561,2]
[323304424,1713882687453,-3771.73,0.00012561,2]
[323304425,1713882687483,-1495.13,0.00012561,2]
[323304426,1713882687510,-1296.08,0.00012561,2]
[323304427,1713882687538,-1855.2,0.00012561,2]
[323304428,1713882687565,-500.0,0.00012561,2]
[323304429,1713882687593,-1019.32,0.00012561,2]
[323304430,1713882687621,-587.52,0.00012561,2]
[323304431,1713882687648,-752.02,0.00012561,2]
[323304432,1713882687676,-500.0,0.00012561,2]
[323304433,1713882687703,-685.8,0.00012561,2]
[323304434,1713882687732,-452.02572736,0.00012561,2]
[323304435,1713882687759,-500.0,0.00012561,2]
[323304436,1713882687786,-534.01,0.00012561,2]
[323304437,1713882687813,-232.14,0.00012561,2]
[323304438,1713882687841,-599.73,0.00012561,2]
[323304439,1713882687868,-507.53,0.00012561,2]
[323304440,1713882687896,-500.0,0.00012561,2]
[323304441,1713882687924,-500.0,0.00012561,2]
[323304442,1713882687954,-500.0,0.00012561,2]
[323304443,1713882687983,-1576.66,0.00012561,2]
[323304444,1713882688010,-500.0,0.00012561,2]
[323304445,1713882688042,-1650.42,0.00012561,2]
[323304446,1713882688068,-282.79535366,0.00012561,2]
[323304447,1713882688097,-5649.04,0.00012561,2]
[323304448,1713882688124,-500.0,0.00012561,2]
[323304449,1713882688151,-500.0,0.00012561,2]
[323304450,1713882688180,-579.89,0.00012561,2]
[323304451,1713882688207,-500.0,0.00012562,2]
[323304452,1713882688234,-500.0,0.00012562,2]
[323304453,1713882688262,-621.31,0.00012562,2]
[323304454,1713882688289,-500.0,0.00012562,2]
[323304455,1713882688316,-524.05,0.00012562,2]
[323304456,1713882688343,-778.7,0.00012562,2]
[323304457,1713882688370,-594.67278002,0.00012562,2]
[323304458,1713882688397,-500.0,0.00012562,2]
[323304459,1713882688424,-488.28,0.00012562,2]
[323304460,1713882688452,-500.0,0.00012562,2]
[323304461,1713882688481,-993.19,0.00012562,2]
[323304462,1713882688508,-953.39,0.00012562,2]
[323304463,1713882688535,-500.0,0.00012562,2]
[323304464,1713882688561,-500.0,0.00012562,2]
[323304465,1713882688587,-991.16,0.00012562,2]
[323304466,1713882688614,-500.0,0.00012562,2]
[323304467,1713882688641,-500.0,0.00012562,2]
[323304468,1713882688667,-692.98,0.00012562,2]
[323304469,1713882688694,-740.72,0.00012562,2]
[323304470,1713882688721,-500.0,0.00012562,2]
[323304471,1713882688748,-860.43,0.00012562,2]
[323304472,1713882688774,-500.0,0.00012562,2]
[323304473,1713882688800,-500.0,0.00012562,2]
[323304474,1713882688827,-629.2,0.00012562,2]
[323304475,1713882688854,-703.03,0.00012562,2]
[323304476,1713882688883,-1062.03,0.00012562,2]
[323304477,1713882688910,-500.0,0.00012562,2]
[323304478,1713882688938,-500.0,0.00012562,2]
[323304479,1713882688967,-685.82,0.00012562,2]
[323304480,1713882689000,-500.0,0.00012562,2]
[323304481,1713882689028,-500.0,0.00012562,2]
[323304482,1713882689057,-625.43,0.00012562,2]
[323304483,1713882689084,-500.0,0.00012562,2]
[323304484,1713882689228,-672.07,0.00012562,2]
[323304485,1713882689257,-571.81,0.00012562,2]
[323304486,1713882689286,-500.0,0.00012562,2]
[323304487,1713882689314,-517.8,0.00012562,2]
[323304488,1713882689341,-500.0,0.00012562,2]
[323304489,1713882689368,-500.0,0.00012562,2]
[323304490,1713882689395,-500.0,0.00012562,2]
[323304491,1713882689420,-716.58,0.00012562,2]
[323304492,1713882689447,-500.0,0.00012562,2]
[323304493,1713882689474,-500.0,0.00012562,2]
[323304494,1713882689502,-988.44,0.00012562,2]
[323304495,1713882689529,-500.0,0.00012562,2]
[323304496,1713882689555,-500.0,0.00012562,2]
[323304497,1713882689582,-1238.16,0.00012562,2]
[323304498,1713882689608,-555.59,0.00012562,2]
[323304499,1713882689634,-545.57,0.00012562,2]
[323304500,1713882689662,-500.0,0.00012562,2]
[323304501,1713882689688,-500.0,0.00012562,2]
[323304502,1713882689717,-707.39,0.00012562,2]
[323304503,1713882689746,-622.98,0.00012562,2]
[323304504,1713882689773,-539.63,0.00012562,2]
[323304505,1713882689802,-500.0,0.00012562,2]
[323304506,1713882689830,-500.0,0.00012562,2]
[323304507,1713882689858,-500.0,0.00012562,2]
[323304508,1713882689886,-543.53,0.00012562,2]
[323304509,1713882689914,-500.0,0.00012562,2]
[323304510,1713882689943,-557.45,0.00012562,2]
[323304511,1713882689972,-500.0,0.00012562,2]
[323304512,1713882690007,-500.0,0.00012562,2]
[323304513,1713882690036,-500.0,0.00012562,2]
[323304514,1713882690065,-500.0,0.00012562,2]
[323304515,1713882690098,-500.0,0.00012562,2]
[323304516,1713882690127,-500.0,0.00012562,2]
[323304517,1713882690156,-627.96,0.00012562,2]
[323304518,1713882690185,-500.0,0.00012562,2]
[323304519,1713882690214,-500.0,0.00012562,2]
[323304520,1713882690245,-514.26,0.00012562,2]
[323304521,1713882690274,-806.26,0.00012562,2]
[323304522,1713882690302,-500.0,0.00012562,2]
[323304523,1713882690330,-500.0,0.00012562,2]
[323304524,1713882690358,-500.0,0.00012562,2]
[323304525,1713882690389,-500.0,0.00012562,2]
[323304526,1713882690418,-500.0,0.00012562,2]
[323304527,1713882690446,-986.33,0.00012562,2]
[323304528,1713882690480,-500.0,0.00012562,2]
[323304529,1713882690508,-500.0,0.00012562,2]
[323304530,1713882690537,-760.32,0.00012562,2]
[323304531,1713882690565,-500.0,0.00012562,2]
[323304532,1713882690593,-593.4,0.00012562,2]
[323304533,1713882690619,-906.05,0.00012562,2]
[323304534,1713882690647,-500.0,0.00012562,2]
[323304535,1713882690675,-500.0,0.00012562,2]
[323304536,1713882690702,-1852.81,0.00012562,2]
[323304537,1713882690732,-1494.91,0.00012562,2]
[323304538,1713882690760,-500.0,0.00012562,2]
[323304539,1713882690790,-569.93,0.00012562,2]
[323304540,1713882690819,-716.65,0.00012562,2]
[323304541,1713882690848,-500.0,0.00012562,2]
[323304542,1713882690878,-646.79,0.00012562,2]
[323304543,1713882690907,-500.0,0.00012562,2]
[323304544,1713882690936,-1102.77,0.00012562,2]
[323304545,1713882690965,-500.0,0.00012562,2]
[323304546,1713882690999,-500.0,0.00012562,2]
[323304547,1713882691030,-500.0,0.00012562,2]
[323304548,1713882691060,-8813.69,0.00012562,2]
[323304549,1713882691092,-500.0,0.00012562,2]
[323304550,1713882691121,-695.12,0.00012562,2]
[323304551,1713882691150,-500.0,0.00012562,2]
[323304552,1713882691180,-20526.55,0.00012562,2]
[323304553,1713882691209,-500.0,0.00012562,2]
[323304554,1713882691237,-1906.03,0.00012562,2]
[323304555,1713882691265,-500.0,0.00012562,2]
[323304556,1713882691293,-500.0,0.00012562,2]
[323304557,1713882691322,-896.5,0.00012562,2]
[323304558,1713882691350,-500.0,0.00012562,2]
[323304559,1713882691379,-1096.15,0.00012562,2]
[323304560,1713882691407,-500.0,0.00012562,2]
[323304561,1713882691435,-3180.71,0.00012562,2]
[323304562,1713882691463,-640.51,0.00012562,2]
[323304563,1713882691493,-500.0,0.00012562,2]
[323304564,1713882691520,-500.0,0.00012562,2]
[323304565,1713882691549,-500.0,0.00012562,2]
[323304566,1713882691577,-861.95,0.00012562,2]
[323304567,1713882691605,-1077.2,0.00012562,2]
[323304568,1713882691633,-500.0,0.00012562,2]
[323304569,1713882691662,-500.0,0.00012562,2]
[323304570,1713882691689,-500.0,0.00012562,2]
[323304571,1713882691716,-750.98,0.00012562,2]
[323304572,1713882691745,-500.0,0.00012562,2]
[323304573,1713882691773,-500.0,0.00012562,2]
[323304574,1713882692066,-500.0,0.00012562,2]
[323304575,1713882692096,-500.0,0.00012562,2]
[323304576,1713882692124,-500.0,0.00012562,2]
[323304577,1713882692153,-500.0,0.00012562,2]
[323304578,1713882692181,-525.44,0.00012562,2]
[323304579,1713882692209,-833.45,0.00012562,2]
[323304580,1713882692239,-500.0,0.00012562,2]
[323304581,1713882692273,-538.61,0.00012562,2]
[323304582,1713882692306,-541.95,0.00012562,2]
[323304583,1713882692336,-500.0,0.00012562,2]
[323304584,1713882692364,-500.0,0.00012562,2]
[323304585,1713882692392,-500.0,0.00012562,2]
[323304586,1713882692421,-500.0,0.00012562,2]
[323304587,1713882692449,-500.0,0.00012562,2]
[323304588,1713882692479,-1467.98,0.00012562,2]
[323304589,1713882692508,-1398.42,0.00012562,2]
[323304590,1713882692536,-500.0,0.00012562,2]
[323304591,1713882692563,-1598.51,0.00012562,2]
[323304592,1713882692591,-591.59,0.00012562,2]
[323304593,1713882692619,-500.0,0.00012562,2]
[323304594,1713882692649,-500.0,0.00012562,2]
[323304595,1713882692681,-695.66,0.00012562,2]
[323304596,1713882692709,-501.08,0.00012563,2]
[323304597,1713882692737,-500.0,0.00012563,2]
[323304598,1713882692765,-500.0,0.00012563,2]
[323304599,1713882692794,-500.0,0.00012563,2]
[323304600,1713882692825,-500.0,0.00012563,2]
[323304601,1713882692853,-500.0,0.00012563,2]
[323304602,1713882692882,-500.0,0.00012563,2]
[323304603,1713882692911,-500.0,0.00012563,2]
[323304604,1713882692940,-500.0,0.00012563,2]
[323304605,1713882692969,-500.0,0.00012563,2]
[323304606,1713882693002,-500.0,0.00012563,2]
[323304607,1713882693031,-500.0,0.00012563,2]
[323304608,1713882693059,-500.0,0.00012563,2]
[323304609,1713882693088,-246.22447783,0.00012563,2]
[323304610,1713882693117,-162.23,0.00012563,2]
[323304611,1713882693145,-500.0,0.00012563,2]
[323304612,1713882693177,-500.0,0.00012563,2]
[323304613,1713882693206,-500.0,0.00012563,2]
[323304614,1713882693235,-866.57342824,0.00012576,2]
[323304615,1713882693262,-2100.0,0.00012612,2]
[323304616,1713882693293,-150.0,0.00012616,2]
[323304617,1713882693322,-150.0,0.00012617,2]
[323304618,1713882693350,-150.0,0.00012623,2]
[323304619,1713882693379,-150.0,0.00012624,2]
[323304620,1713882693410,-150.0,0.00012638,2]
[323304621,1713882693439,-150.0,0.00012639,2]
[323304622,1713882693469,-866.57342824,0.00012641,2]
[323304623,1713882693500,-150.0,0.00012644,2]
[323304624,1713882693528,-150.0,0.00012649,2]
[323304625,1713882693558,-150.0,0.00012659,2]
[323304626,1713882693587,-150.0,0.0001266,2]
[323304627,1713882693616,-150.0,0.00012661,2]
[323304628,1713882693647,-150.0,0.00012666,2]
[323304629,1713882693678,-150.0,0.00012667,2]
[323304630,1713882693708,-150.0,0.00012674,2]
[323304631,1713882693740,-150.0,0.00012675,2]
[323304632,1713882693769,-150.0,0.00012677,2]
[323304633,1713882693799,-150.0,0.00012678,2]
[323304634,1713882693828,-150.0,0.00012682,2]
[323304635,1713882693858,-150.0,0.00012682,2]
[323304636,1713882693886,-150.0,0.00012686,2]
[323304637,1713882693917,-150.0,0.00012688,2]
[323304638,1713882693947,-150.0,0.00012688,2]
[323304639,1713882693977,-150.0,0.00012694,2]
[323304640,1713882694010,-150.0,0.00012695,2]
[323304641,1713882694040,-1360.0,0.000127,2]
[323304642,1713882694070,-352.0,0.000127,2]
[323304643,1713882694098,-1000.0,0.000127,2]
[323304644,1713882694126,-222.0,0.000127,2]
[323304645,1713882694154,-150.0,0.00012701,2]
[323304646,1713882694235,-150.0,0.00012704,2]
[323304647,1713882694263,-866.57342824,0.00012706,2]
[323304648,1713882694300,-150.0,0.00012706,2]
[323304649,1713882694329,-150.0,0.00012708,2]
[323304650,1713882694358,-150.0,0.00012709,2]
[323304651,1713882694386,-150.0,0.00012709,2]
[323304652,1713882694414,-150.0,0.00012713,2]
[323304653,1713882694442,-150.0,0.00012718,2]
[323304654,1713882694469,-150.0,0.0001272,2]
[323304655,1713882694500,-150.0,0.00012721,2]
[323304656,1713882694528,-150.0,0.00012724,2]
[323304657,1713882694556,-150.0,0.00012724,2]
[323304658,1713882694585,-150.0,0.00012725,2]
[323304659,1713882694614,-150.0,0.00012729,2]
[323304660,1713882694642,-150.0,0.00012738,2]
[323304661,1713882694670,-150.0,0.00012738,2]
[323304662,1713882694698,-150.0,0.00012738,2]
[323304663,1713882694725,-1035.21955033,0.00012738,2]
[323304664,1713882694755,-1114.81849721,0.00012738,2]
[323304665,1713882694783,-150.0,0.0001274,2]
[323304666,1713882694815,-150.0,0.00012743,2]
[323304667,1713882695738,-150.0,0.00012744,2]
[323304668,1713882695782,-150.0,0.00012749,2]
[323304669,1713882695820,-150.0,0.00012761,2]
[323304670,1713882695854,-150.0,0.00012761,2]
[323304671,1713882695886,-150.0,0.00012762,2]
[323304672,1713882696444,-150.0,0.00012762,2]
[323304673,1713882696481,-150.0,0.00012764,2]
[323304674,1713882696517,-150.0,0.00012764,2]
[323304675,1713882696548,-150.0,0.00012767,2]
[323304676,1713882696582,-150.0,0.00012768,2]
[323304677,1713882696613,-150.0,0.00012769,2]
[323304678,1713882696643,-150.0,0.0001277,2]
[323304679,1713882696674,-150.0,0.0001277,2]
[323304680,1713882696705,-866.57342824,0.0001277,2]
[323304681,1713882696739,-150.0,0.00012774,2]
[323304682,1713882696771,-150.0,0.00012784,2]
[323304683,1713882696804,-150.0,0.00012784,2]
[323304684,1713882696834,-155.0,0.000128,2]
[323304685,1713882696866,-150.0,0.000128,2]
[323304686,1713882696896,-1300.0,0.00012802,2]
[323304687,1713882696925,-600.0,0.00012802,2]
[323304688,1713882696958,-150.0,0.00012805,2]
[323304689,1713882696991,-150.0,0.00012805,2]
[323304690,1713882697026,-150.0,0.00012807,2]
[323304691,1713882697060,-150.0,0.00012812,2]
[323304692,1713882697095,-150.0,0.00012812,2]
[323304693,1713882697130,-150.0,0.00012813,2]
[323304694,1713882697162,-150.0,0.00012815,2]
[323304695,1713882697196,-150.0,0.00012816,2]
[323304696,1713882697228,-150.0,0.00012817,2]
[323304697,1713882697261,-150.0,0.00012823,2]
[323304698,1713882697292,-150.0,0.00012828,2]
[323304699,1713882697324,-150.0,0.00012832,2]
[323304700,1713882697354,-500.0,0.00012835,2]
[323304701,1713882697384,-500.0,0.00012835,2]
[323304702,1713882697413,-500.0,0.00012835,2]
[323304703,1713882697442,-500.0,0.00012835,2]
[323304704,1713882697472,-507.37,0.00012835,2]
[323304705,1713882697503,-500.0,0.00012835,2]
[323304706,1713882697533,-500.0,0.00012835,2]
[323304707,1713882697563,-500.0,0.00012835,2]
[323304708,1713882697593,-500.0,0.00012835,2]
[323304709,1713882697623,-603.72,0.00012835,2]
[323304710,1713882697652,-500.0,0.00012835,2]
[323304711,1713882697682,-500.0,0.00012835,2]
[323304712,1713882697710,-500.0,0.00012835,2]
[323304713,1713882697740,-500.0,0.00012835,2]
[323304714,1713882697768,-500.0,0.00012835,2]
[323304715,1713882697796,-500.0,0.00012835,2]
[323304716,1713882697825,-500.0,0.00012835,2]
[323304717,1713882697853,-500.0,0.00012835,2]
[323304718,1713882697881,-677.44,0.00012835,2]
[323304719,1713882697910,-500.0,0.00012835,2]